fUSD/lending_fUSD_20240904
["ID","MTS","AMOUNT","RATE_DAILY","PERIOD"]
[337065751,1725409838657,-500.0,0.0001488,2]
[337065752,1725409838668,-501.43029422,0.0001488,2]
[337065753,1725409838678,-500.0,0.0001488,2]
[337065754,1725409838687,-500.0,0.0001488,2]
[337065755,1725409838697,-500.0,0.0001488,2]
[337065756,1725409838706,-500.0,0.0001488,2]
[337065757,1725409838715,-501.15514921,0.0001488,2]
[337065758,1725409838724,-500.0,0.0001488,2]
[337065759,1725409838734,-500.9821886,0.0001488,2]
[337065760,1725409838743,-500.77108214,0.0001488,2]
[337065761,1725409838753,-500.0,0.0001488,2]
[337065762,1725409838763,-500.0,0.0001488,2]
[337065763,1725409838773,-500.0,0.0001488,2]
[337065764,1725409838782,-500.0,0.0001488,2]
[337065765,1725409838791,-500.0,0.0001488,2]
[337065766,1725409838800,-500.0,0.0001488,2]
[337065767,1725409838809,-500.0,0.0001488,2]
[337065768,1725409838818,-500.0,0.0001488,2]
[337065769,1725409838827,-500.0,0.0001488,2]
[337065770,1725409838837,-500.0,0.0001488,2]
[337065771,1725409838846,-500.0,0.0001488,2]
[337065772,1725409838856,-516.24455372,0.0001488,2]
[337065773,1725409838865,-500.0,0.0001488,2]
[337065774,1725409838875,-202.94930232,0.0001488,2]
[337065775,1725409838886,-500.0,0.0001488,2]
[337065776,1725409838895,-500.0,0.0001488,2]
[337065777,1725409838904,-509.53520753,0.0001488,2]
[337065778,1725409838914,-500.0,0.0001488,2]
[337065779,1725409838923,-501.46261286,0.0001488,2]
[337065780,1725409838932,-501.37741659,0.0001488,2]
[337065781,1725409838941,-500.0,0.0001488,2]
[337065782,1725409838950,-500.0,0.0001488,2]
[337065783,1725409838959,-500.0,0.0001488,2]
[337065784,1725409838968,-500.0,0.0001488,2]
[337065785,1725409838978,-500.0,0.0001488,2]
[337065786,1725409838987,-500.0,0.0001488,2]
[337065787,1725409838996,-500.0,0.0001488,2]
[337065788,1725409839006,-500.0,0.0001488,2]
[337065789,1725409839015,-500.0,0.0001488,2]
[337065790,1725409839025,-500.0,0.0001488,2]
[337065791,1725409839034,-500.0,0.0001488,2]
[337065792,1725409839044,-500.0,0.0001488,2]
[337065793,1725409839053,-500.0,0.0001488,2]
[337065794,1725409839062,-500.0,0.0001488,2]
[337065795,1725409839071,-608.37641531,0.0001488,2]
[337065796,1725409839081,-500.0,0.0001488,2]
[337065797,1725409839090,-500.0,0.0001488,2]
[337065798,1725409839099,-500.0,0.0001488,2]
[337065799,1725409839108,-500.0,0.0001488,2]
[337065800,1725409839117,-500.0,0.0001488,2]
[337065801,1725409839127,-500.0,0.0001488,2]
[337065802,1725409839137,-500.0,0.0001488,2]
[337065803,1725409839146,-500.0,0.0001488,2]
[337065804,1725409839155,-500.0,0.0001488,2]
[337065805,1725409839164,-500.0,0.0001488,2]
[337065806,1725409839174,-500.0,0.0001488,2]
[337065807,1725409839184,-312.04774063,0.0001488,2]
[337065808,1725409839193,-500.0,0.0001488,2]
[337065809,1725409839203,-500.0,0.0001488,2]
[337065810,1725409839213,-500.0,0.0001488,2]
[337065811,1725409839222,-500.0,0.0001488,2]
[337065812,1725409839231,-500.0,0.0001488,2]
[337065813,1725409839241,-500.0,0.0001488,2]
[337065814,1725409839250,-500.0,0.0001488,2]
[337065815,1725409839259,-500.0,0.0001488,2]
[337065816,1725409839269,-500.0,0.0001488,2]
[337065817,1725409839278,-500.0,0.0001488,2]
[337065818,1725409839288,-500.0,0.0001488,2]
[337065819,1725409839298,-500.0,0.0001488,2]
[337065820,1725409839307,-532.30019493,0.0001488,2]
[337065821,1725409839316,-500.0,0.0001488,2]
[337065822,1725409839325,-500.0,0.0001488,2]
[337065823,1725409839335,-563.34,0.0001488,2]
[337065824,1725409839345,-501.21191418,0.0001488,2]
[337065825,1725409839354,-500.0,0.0001488,2]
[337065826,1725409839364,-500.0,0.0001488,2]
[337065827,1725409839374,-498.87681583,0.0001488,2]
[337065828,1725409839385,-500.0,0.0001488,2]
[337065829,1725409839395,-500.0,0.0001488,2]
[337065830,1725409839404,-500.0,0.0001488,2]
[337065831,1725409839413,-500.0,0.0001488,2]
[337065832,1725409839423,-500.29665547,0.0001488,2]
[337065833,1725409839432,-500.0,0.0001488,2]
[337065834,1725409839441,-500.0,0.0001488,2]
[337065835,1725409839451,-500.3933307,0.0001488,2]
[337065836,1725409839461,-501.92874046,0.0001488,2]
[337065837,1725409839470,-500.0,0.0001488,2]
[337065838,1725409839480,-500.0,0.0001488,2]
[337065839,1725409839489,-500.0,0.0001488,2]
[337065840,1725409839498,-500.0,0.0001488,2]
[337065841,1725409839507,-500.0,0.0001488,2]
[337065842,1725409839517,-500.85820045,0.0001488,2]
[337065843,1725409839527,-500.0,0.0001488,2]
[337065844,1725409839537,-501.11664965,0.0001488,2]
[337065845,1725409839546,-500.0,0.0001488,2]
[337065846,1725409839558,-500.0,0.0001488,2]
[337065847,1725409839567,-500.26251506,0.0001488,2]
[337065848,1725409839577,-500.0,0.0001488,2]
[337065849,1725409839587,-500.0,0.0001488,2]
[337065850,1725409839597,-500.0,0.0001488,2]
[337065851,1725409839607,-500.0,0.0001488,2]
[337065852,1725409839616,-502.05521369,0.0001488,2]
[337065853,1725409839625,-500.0,0.0001488,2]
[337065854,1725409839636,-523.45415456,0.0001488,2]
[337065855,1725409839646,-500.0,0.0001488,2]
[337065856,1725409839655,-500.0,0.0001488,2]
[337065857,1725409839664,-152.43445479,0.0001488,2]
[337065858,1725409839676,-500.0,0.0001488,2]
[337065859,1725409839685,-500.0,0.0001488,2]
[337065860,1725409839694,-500.0,0.0001488,2]
[337065861,1725409839704,-500.0,0.0001488,2]
[337065862,1725409839714,-500.0,0.0001488,2]
[337065863,1725409839723,-500.0,0.0001488,2]
[337065864,1725409839732,-500.0,0.0001488,2]
[337065865,1725409839742,-500.0,0.0001488,2]
[337065866,1725409839754,-326.5635158,0.0001488,2]
[337065867,1725409839765,-500.0,0.0001488,2]
[337065868,1725409839776,-500.0,0.0001488,2]
[337065869,1725409839786,-500.0,0.0001488,2]
[337065870,1725409839796,-500.0,0.0001488,2]
[337065871,1725409839807,-589.99758476,0.0001488,2]
[337065872,1725409839817,-500.0,0.0001488,2]
[337065873,1725409839827,-500.0,0.0001488,2]
[337065874,1725409839837,-500.0,0.0001488,2]
[337065875,1725409839847,-500.0,0.0001488,2]
[337065877,1725409839858,-500.0,0.0001488,2]
[337065878,1725409839869,-500.0,0.0001488,2]
[337065879,1725409839877,-500.0,0.0001488,2]
[337065880,1725409839891,-500.0,0.0001488,2]
[337065881,1725409839903,-505.39306384,0.0001488,2]
[337065882,1725409839918,-500.0,0.0001488,2]
[337065886,1725409840094,-500.0,0.0001488,2]
[337065887,1725409840104,-631.0113316,0.0001488,2]
[337065888,1725409840114,-211.02011157,0.0001488,2]
[337065889,1725409840123,-500.0,0.0001488,2]
[337065890,1725409840139,-500.0,0.0001488,2]
[337065891,1725409840148,-500.0,0.0001488,2]
[337065892,1725409840158,-500.0,0.0001488,2]
[337065893,1725409840167,-500.0,0.0001488,2]
[337065894,1725409840176,-500.0,0.0001488,2]
[337065895,1725409840185,-500.0,0.0001488,2]
[337065896,1725409840195,-500.0,0.0001488,2]
[337065897,1725409840204,-500.0,0.0001488,2]
[337065898,1725409840214,-500.0,0.0001488,2]
[337065899,1725409840223,-500.0,0.0001488,2]
[337065900,1725409840232,-500.0,0.0001488,2]
[337065901,1725409840241,-500.0,0.0001488,2]
[337065902,1725409840251,-500.0,0.0001488,2]
[337065903,1725409840261,-500.0,0.0001488,2]
[337065904,1725409840270,-500.0,0.0001488,2]
[337065905,1725409840280,-500.0,0.0001488,2]
[337065906,1725409840289,-213.59423311,0.0001488,2]
[337065907,1725409840298,-500.0,0.0001488,2]
[337065908,1725409840307,-504.13420254,0.0001488,2]
[337065909,1725409840317,-500.0,0.0001488,2]
[337065910,1725409840326,-500.0,0.0001488,2]
[337065911,1725409840336,-500.0,0.0001488,2]
[337065912,1725409840346,-500.0,0.0001488,2]
[337065913,1725409840356,-522.53180508,0.0001488,2]
[337065914,1725409840366,-500.0,0.0001488,2]
[337065915,1725409840375,-500.0,0.0001488,2]
[337065916,1725409840395,-500.0,0.0001488,2]
[337065917,1725409840404,-500.0,0.0001488,2]
[337065918,1725409840414,-500.0,0.0001488,2]
[337065919,1725409840423,-636.35,0.0001488,2]
[337065920,1725409840433,-500.0,0.0001488,2]
[337065921,1725409840442,-500.0,0.0001488,2]
[337065922,1725409840452,-500.0,0.0001488,2]
[337065923,1725409840462,-500.0,0.0001488,2]
[337065924,1725409840472,-500.0,0.0001488,2]
[337065925,1725409840482,-500.0,0.0001488,2]
[337065926,1725409840492,-500.0,0.0001488,2]
[337065927,1725409840501,-500.0,0.0001488,2]
[337065928,1725409840511,-500.80436004,0.0001488,2]
[337065929,1725409840520,-11495.3286,0.00014881,2]
[337065930,1725409840529,-189017.7496,0.00014881,2]
[337065931,1725409840538,-261.646,0.00014885,2]
[337065932,1725409840547,-1500.0,0.00014886,2]
[337065933,1725409840556,-161.63783233,0.00014887,2]
[337065934,1725409840566,-3497.970885,0.000149,2]
[337065936,1725409840576,-1358.7831,0.000149,2]
[337065938,1725409840585,-202.0109282,0.000149,2]
[337065939,1725409840594,-153.66948666,0.000149,2]
[337065940,1725409840603,-359.22078119,0.000149,2]
[337065941,1725409840613,-161.63783233,0.000149,2]
[337065942,1725409840622,-150.0,0.000149,2]
[337065943,1725409840634,-465.1,0.000149,2]
[337065944,1725409840643,-1500.0,0.0001491,2]
[337065945,1725409840652,-1500.0,0.00014924,2]
[337065946,1725409840661,-1500.0,0.00014926,2]
[337065947,1725409840671,-817.9429019,0.00014938,2]
[337065948,1725409840681,-1500.0,0.00014944,2]
[337065949,1725409840690,-1500.0,0.00014958,2]
[337065950,1725409840699,-221.81222774,0.00014969,3]
[337065951,1725409840708,-221.81222774,0.00014971,3]
[337065952,1725409840718,-151.14,0.00014971,2]
[337065953,1725409840727,-243.66770739,0.00014973,2]
[337065954,1725409840737,-500.0,0.00014973,2]
[337065955,1725409840747,-593.56,0.00014974,2]
[337065956,1725409840756,-500.0,0.00014974,2]
[337065957,1725409840766,-500.0,0.00014974,2]
[337065958,1725409840775,-500.0,0.00014974,2]
[337065959,1725409840785,-500.0,0.00014974,2]
[337065960,1725409840794,-545.06,0.00014974,2]
[337065961,1725409840804,-422.74,0.00014974,2]
[337065962,1725409840813,-7819.620934,0.00014975,3]
[337065963,1725409840822,-1563.9241868,0.00014976,3]
[337065964,1725409840831,-1563.9241868,0.00014977,3]
[337065965,1725409840840,-6255.6967472,0.00014979,3]
[337065966,1725409840849,-500.0,0.0001498,2]
[337065967,1725409840858,-500.0,0.0001498,2]
[337065968,1725409840868,-500.0,0.0001498,2]
[337065969,1725409840878,-500.0,0.0001498,2]
[337065970,1725409840890,-500.0,0.0001498,2]
[337065971,1725409840900,-500.0,0.0001498,2]
[337065972,1725409840909,-500.0,0.0001498,2]
[337065973,1725409840918,-500.0,0.0001498,2]
[337065974,1725409840927,-568.41374435,0.0001498,2]
[337065975,1725409840936,-500.0,0.0001498,2]
[337065976,1725409840945,-500.0,0.0001498,2]
[337065977,1725409840955,-500.0,0.0001498,2]
[337065978,1725409840964,-500.0,0.0001498,2]
[337065979,1725409840973,-239.36,0.0001498,2]
[337065980,1725409840982,-500.0,0.0001498,2]
[337065981,1725409840991,-500.0,0.0001498,2]
[337065982,1725409841000,-500.0,0.0001498,2]
[337065983,1725409841009,-554.49672139,0.0001498,2]
[337065984,1725409841019,-311.45073747,0.0001498,2]
[337065985,1725409841029,-500.0,0.00014981,2]
[337065986,1725409841039,-500.0,0.00014981,2]
[337065987,1725409841049,-500.0,0.00014981,2]
[337065988,1725409841058,-500.0,0.00014981,2]
[337065989,1725409841067,-500.0,0.00014981,2]
[337065990,1725409841076,-500.0,0.00014981,2]
[337065991,1725409841086,-500.0,0.00014981,2]
[337065992,1725409841095,-500.0,0.00014981,2]
[337065993,1725409841104,-500.0,0.00014981,2]
[337065994,1725409841115,-500.0,0.00014981,2]
[337065995,1725409841125,-393.41229782,0.00014981,2]
[337065996,1725409841136,-500.0,0.00014981,2]
[337065997,1725409841145,-500.0,0.00014981,2]
[337065998,1725409841154,-517.53664197,0.00014981,2]
[337065999,1725409841163,-500.0,0.00014981,2]
[337066000,1725409841173,-500.0,0.00014981,2]
[337066001,1725409841182,-500.0,0.00014981,2]
[337066002,1725409841191,-500.0,0.00014981,2]
[337066003,1725409841200,-500.0,0.00014981,2]
[337066004,1725409841209,-500.0,0.00014981,2]
[337066005,1725409841219,-500.0,0.00014981,2]
[337066006,1725409841228,-500.0,0.00014981,2]
[337066007,1725409841237,-500.0,0.00014981,2]
[337066008,1725409841246,-500.0,0.00014981,2]
[337066009,1725409841255,-500.0,0.00014981,2]
[337066010,1725409841264,-500.0,0.00014981,2]
[337066011,1725409841273,-500.0,0.00014981,2]
[337066012,1725409841283,-500.0,0.00014981,2]
[337066013,1725409841292,-500.0,0.00014981,2]
[337066014,1725409841301,-500.0,0.00014981,2]
[337066015,1725409841310,-500.0,0.00014981,2]
[337066016,1725409841319,-500.0,0.00014981,2]
[337066017,1725409841328,-500.0,0.00014981,2]
[337066018,1725409841338,-500.0,0.00014981,2]
[337066019,1725409841348,-500.0,0.00014981,2]
[337066020,1725409841358,-500.0,0.00014981,2]
[337066021,1725409841367,-500.0,0.00014981,2]
[337066022,1725409841377,-500.0,0.00014981,2]
[337066023,1725409841387,-500.0,0.00014981,2]
[337066024,1725409841397,-500.0,0.00014981,2]
[337066025,1725409841407,-500.0,0.00014981,2]
[337066026,1725409841417,-500.0,0.00014981,2]
[337066027,1725409841426,-500.0,0.00014981,2]
[337066028,1725409841436,-500.0,0.00014981,2]
[337066029,1725409841445,-500.0,0.00014981,2]
[337066030,1725409841455,-500.0,0.00014981,2]
[337066031,1725409841464,-160.92,0.00014981,2]
[337066032,1725409841474,-500.0,0.00014981,2]
[337066033,1725409841483,-500.0,0.00014982,2]
[337066034,1725409841492,-609.42,0.00014982,2]
[337066035,1725409841501,-204.65912249,0.00014982,2]
[337066036,1725409841511,-501.70560618,0.00014982,2]
[337066037,1725409841520,-501.70631809,0.00014982,2]
[337066038,1725409841529,-500.33522557,0.00014982,2]
[337066039,1725409841539,-500.49990011,0.00014982,2]
[337066040,1725409841548,-500.0,0.00014982,2]
[337066041,1725409841557,-500.8266038,0.00014982,2]
[337066042,1725409841567,-500.3679396,0.00014982,2]
[337066043,1725409841577,-501.75030627,0.00014982,2]
[337066044,1725409841586,-500.37151858,0.00014982,2]
[337066045,1725409841596,-501.23595907,0.00014982,2]
[337066046,1725409841605,-500.19103685,0.00014982,2]
[337066047,1725409841614,-500.0,0.00014982,2]
[337066048,1725409841623,-501.82121418,0.00014982,2]
[337066049,1725409841634,-647.79841258,0.00014982,2]
[337066050,1725409841643,-500.0,0.00014982,2]
[337066051,1725409841653,-489.50734776,0.00014982,2]
[337066052,1725409841662,-501.06306932,0.00014982,2]
[337066053,1725409841673,-500.5849163,0.00014982,2]
[337066054,1725409841683,-501.05037618,0.00014982,2]
[337066055,1725409841692,-500.71031881,0.00014982,2]
[337066056,1725409841701,-502.74535974,0.00014982,2]
[337066057,1725409841710,-501.94872119,0.00014982,2]
[337066058,1725409841720,-501.00327662,0.00014982,2]
[337066059,1725409841729,-500.3310974,0.00014982,2]
[337066060,1725409841738,-500.45395615,0.00014982,2]
[337066061,1725409841747,-500.0,0.00014982,2]
[337066062,1725409841757,-500.95832181,0.00014982,2]
[337066063,1725409841766,-500.0,0.00014982,2]
[337066064,1725409841775,-501.78921311,0.00014982,2]
[337066065,1725409841784,-501.22011989,0.00014982,2]
[337066066,1725409841793,-502.58951655,0.00014982,2]
[337066067,1725409841802,-500.32015777,0.00014982,2]
[337066068,1725409841811,-500.0,0.00014982,2]
[337066069,1725409841820,-503.45305529,0.00014982,2]
[337066070,1725409841829,-500.0,0.00014982,2]
[337066071,1725409841839,-502.24726848,0.00014982,2]
[337066072,1725409841848,-500.0,0.00014982,2]
[337066073,1725409841857,-504.29887009,0.00014982,2]
[337066074,1725409841866,-528.37955478,0.00014982,2]
[337066075,1725409841875,-500.0,0.00014982,2]
[337066076,1725409841885,-503.75866157,0.00014982,2]
[337066077,1725409841894,-565.75,0.00014982,2]
[337066078,1725409841903,-500.0,0.00014982,2]
[337066079,1725409841912,-500.0,0.00014982,2]
[337066080,1725409841921,-500.0,0.00014982,2]
[337066081,1725409841931,-500.0,0.00014982,2]
[337066082,1725409841940,-259.48466895,0.00014982,2]
[337066083,1725409841949,-500.0,0.00014984,2]
[337066084,1725409841959,-500.0,0.00014984,2]
[337066085,1725409841968,-500.0,0.00014984,2]
[337066086,1725409841978,-500.0,0.00014985,2]
[337066087,1725409841987,-500.0,0.00014985,2]
[337066088,1725409841996,-500.0,0.00014985,2]
[337066089,1725409842006,-500.0,0.00014985,2]
[337066090,1725409842015,-500.0,0.00014985,2]
[337066091,1725409842024,-500.0,0.00014985,2]
[337066092,1725409842033,-549.56024704,0.00014985,2]
[337066093,1725409842042,-500.0,0.00014985,2]
[337066094,1725409842051,-500.0,0.00014985,2]
[337066095,1725409842061,-500.0,0.00014985,2]
[337066096,1725409842070,-534.23940421,0.00014985,2]
[337066097,1725409842079,-500.0,0.00014985,2]
[337066098,1725409842088,-500.0,0.00014985,2]
[337066099,1725409842098,-500.0,0.00014985,2]
[337066100,1725409842107,-500.0,0.00014985,2]
[337066101,1725409842116,-501.0037858,0.00014985,2]
[337066102,1725409842126,-500.0,0.00014985,2]
[337066103,1725409842137,-500.0,0.00014985,2]
[337066104,1725409842147,-500.0,0.00014985,2]
[337066105,1725409842156,-500.0,0.00014985,2]
[337066106,1725409842166,-500.0,0.00014985,2]
[337066107,1725409842175,-500.0,0.00014985,2]
[337066108,1725409842185,-500.0,0.00014985,2]
[337066109,1725409842194,-500.0,0.00014985,2]
[337066110,1725409842204,-500.0,0.00014985,2]
[337066111,1725409842213,-500.0,0.00014985,2]
[337066112,1725409842223,-500.0,0.00014985,2]
[337066113,1725409842232,-500.0,0.00014985,2]
[337066114,1725409842242,-500.0,0.00014985,2]
[337066115,1725409842251,-500.0,0.00014985,2]
[337066116,1725409842260,-500.0,0.00014985,2]
[337066117,1725409842270,-500.0,0.00014985,2]
[337066118,1725409842279,-500.0,0.00014985,2]
[337066119,1725409842288,-500.0,0.00014985,2]
[337066120,1725409842298,-500.0,0.00014985,2]
[337066121,1725409842307,-500.0,0.00014985,2]
[337066122,1725409842317,-500.0,0.00014985,2]
[337066123,1725409842326,-500.0,0.00014985,2]
[337066124,1725409842335,-500.0,0.00014985,2]
[337066125,1725409842345,-500.0,0.00014985,2]
[337066126,1725409842354,-500.0,0.00014985,2]
[337066127,1725409842363,-500.0,0.00014985,2]
[337066128,1725409842373,-500.0,0.00014985,2]
[337066129,1725409842383,-500.0,0.00014985,2]
[337066130,1725409842392,-500.0,0.00014985,2]
[337066131,1725409842402,-500.0,0.00014985,2]
[337066132,1725409842411,-500.0,0.00014985,2]
[337066133,1725409842420,-500.0,0.00014985,2]
[337066134,1725409842430,-512.00565977,0.00014985,2]
[337066135,1725409842439,-500.0,0.00014985,2]
[337066136,1725409842448,-500.0,0.00014985,2]
[337066137,1725409842457,-500.0,0.00014985,2]
[337066138,1725409842467,-500.0,0.00014985,2]
[337066139,1725409842476,-500.0,0.00014985,2]
[337066140,1725409842486,-500.0,0.00014985,2]
[337066141,1725409842495,-613.37,0.00014985,2]
[337066142,1725409842504,-500.0,0.00014985,2]
[337066143,1725409842513,-556.79051897,0.00014985,2]
[337066144,1725409842522,-500.0,0.00014985,2]
[337066145,1725409842531,-511.10927927,0.00014985,2]
[337066146,1725409842541,-500.0,0.00014985,2]
[337066147,1725409842550,-500.0,0.00014985,2]
[337066148,1725409842559,-500.0,0.00014985,2]
[337066149,1725409842568,-500.0,0.00014985,2]
[337066150,1725409842577,-500.0,0.00014985,2]
[337066151,1725409842586,-501.78952715,0.00014985,2]
[337066152,1725409842595,-500.0,0.00014985,2]
[337066153,1725409842604,-500.0,0.00014985,2]
[337066154,1725409842613,-500.0,0.00014985,2]
[337066155,1725409842621,-526.80358352,0.00014985,2]
[337066156,1725409842632,-500.0,0.00014985,2]
[337066157,1725409842641,-500.0,0.00014985,2]
[337066158,1725409842650,-500.28350549,0.00014985,2]
[337066159,1725409842659,-502.46210182,0.00014985,2]
[337066160,1725409842668,-637.38326414,0.00014985,2]
[337066161,1725409842680,-500.0,0.00014985,2]
[337066162,1725409842689,-500.0,0.00014985,2]
[337066163,1725409842698,-500.0,0.00014985,2]
[337066164,1725409842707,-541.44990773,0.00014985,2]
[337066165,1725409842716,-500.0,0.00014985,2]
[337066166,1725409842725,-501.75727289,0.00014985,2]
[337066167,1725409842734,-500.72664337,0.00014985,2]
[337066168,1725409842743,-500.0,0.00014985,2]
[337066169,1725409842754,-500.74197141,0.00014985,2]
[337066170,1725409842762,-500.0,0.00014985,2]
[337066171,1725409842771,-500.39686099,0.00014985,2]
[337066172,1725409842780,-500.0,0.00014985,2]
[337066173,1725409842789,-611.45955796,0.00014985,2]
[337066174,1725409842798,-542.33788248,0.00014985,2]
[337066175,1725409842806,-501.07868768,0.00014985,2]
[337066176,1725409842815,-500.0,0.00014985,2]
[337066177,1725409842824,-500.0,0.00014985,2]
[337066178,1725409842834,-500.0,0.00014985,2]
[337066179,1725409842842,-500.84396839,0.00014985,2]
[337066180,1725409842851,-500.0,0.00014985,2]
[337066181,1725409842860,-500.72380833,0.00014985,2]
[337066183,1725409842869,-501.24780749,0.00014985,2]
[337066184,1725409842878,-500.0,0.00014985,2]
[337066185,1725409842888,-500.8560207,0.00014985,2]
[337066186,1725409842897,-500.0,0.00014985,2]
[337066187,1725409842906,-500.0,0.00014985,2]
[337066188,1725409842915,-633.7,0.00014985,2]
[337066189,1725409842924,-500.0,0.00014985,2]
[337066190,1725409842933,-500.0,0.00014985,2]
[337066191,1725409842942,-501.31324722,0.00014985,2]
[337066192,1725409842951,-500.0,0.00014985,2]
[337066193,1725409842960,-500.0,0.00014985,2]
[337066194,1725409842970,-500.38957701,0.00014985,2]
[337066195,1725409842979,-500.0,0.00014985,2]
[337066197,1725409842988,-500.0,0.00014985,2]
[337066200,1725409842997,-500.0,0.00014985,2]
[337066201,1725409843006,-500.0,0.00014985,2]
[337066204,1725409843015,-500.0,0.00014985,2]
[337066205,1725409843024,-500.0,0.00014985,2]
[337066206,1725409843035,-519.21074502,0.00014985,2]
[337066207,1725409843045,-500.0,0.00014985,2]
[337066208,1725409843054,-500.0,0.00014985,2]
[337066209,1725409843063,-500.25087919,0.00014985,2]
[337066210,1725409843072,-500.0,0.00014985,2]
[337066211,1725409843081,-500.0,0.00014985,2]
[337066212,1725409843090,-500.0,0.00014985,2]
[337066213,1725409843099,-500.0,0.00014985,2]
[337066214,1725409843108,-537.22258091,0.00014985,2]
[337066215,1725409843117,-612.48,0.00014985,2]
[337066216,1725409843126,-500.0,0.00014985,2]
[337066217,1725409843140,-500.0,0.00014985,2]
[337066218,1725409843152,-501.61437146,0.00014985,2]
[337066219,1725409843161,-501.59587346,0.00014985,2]
[337066220,1725409843169,-500.0,0.00014985,2]
[337066221,1725409843178,-252.52437818,0.00014985,2]
[337066222,1725409843187,-500.0,0.00014985,2]
[337066223,1725409843196,-500.0,0.00014985,2]
[337066224,1725409843205,-500.0,0.00014985,2]
[337066225,1725409843214,-500.0,0.00014985,2]
[337066226,1725409843222,-538.93036624,0.00014985,2]
[337066227,1725409843231,-500.64715688,0.00014985,2]
[337066228,1725409843240,-500.0,0.00014985,2]
[337066229,1725409843249,-500.0,0.00014985,2]
[337066230,1725409843257,-500.0,0.00014985,2]
[337066231,1725409843266,-500.0,0.00014985,2]
[337066232,1725409843275,-500.0,0.00014985,2]
[337066233,1725409843284,-585.34,0.00014985,2]
[337066234,1725409843293,-500.0,0.00014985,2]
[337066235,1725409843302,-500.0,0.00014985,2]
[337066236,1725409843311,-500.0,0.00014985,2]
[337066237,1725409843320,-500.0,0.00014985,2]
[337066238,1725409843329,-212.03916143,0.00014985,2]
[337066239,1725409843337,-500.0,0.00014985,2]
[337066240,1725409843346,-500.0,0.00014985,2]
[337066241,1725409843356,-500.0,0.00014985,2]
[337066242,1725409843365,-500.0,0.00014985,2]
[337066243,1725409843374,-500.0,0.00014985,2]
[337066244,1725409843385,-500.0,0.00014985,2]
[337066245,1725409843395,-500.0,0.00014985,2]
[337066246,1725409843404,-500.0,0.00014985,2]
[337066247,1725409843413,-500.0,0.00014985,2]
[337066248,1725409843422,-500.0,0.00014985,2]
[337066249,1725409843431,-500.0,0.00014985,2]
[337066250,1725409843440,-500.0,0.00014985,2]
[337066251,1725409843449,-500.0,0.00014985,2]
[337066252,1725409843457,-500.0,0.00014985,2]
[337066253,1725409843466,-500.0,0.00014985,2]
[337066254,1725409843476,-500.0,0.00014985,2]
[337066255,1725409843485,-500.0,0.00014985,2]
[337066256,1725409843495,-500.0,0.00014985,2]
[337066257,1725409843504,-500.0,0.00014985,2]
[337066259,1725409843513,-500.0,0.00014985,2]
[337066260,1725409843523,-500.0,0.00014985,2]
[337066261,1725409843531,-500.0,0.00014985,2]
[337066262,1725409843541,-500.0,0.00014985,2]
[337066264,1725409843550,-500.0,0.00014985,2]